Cogmind - Beta 16 @@@ ROGUE MODE // 2025.10.31 @ 08:13:01 Player: daxter767676 Result: Destroyed by FJ-HW1(R) with Subdweller Beam Cannon Performance ------------- Evolutions (0) 0 Regions Visited (3) 600 Robots Destroyed (14) 70 Value Destroyed (103) 103 Prototype IDs (12) 240 Alien Tech Used (0) 0 Bonus (0) 0 TOTAL SCORE: 1013 Bonus ------- None Cogmind --------- Core Integrity 0/250 Matter 191/300 Energy 10/100 System Corruption 0% Temperature Cool (9) Movement Flying (35) Location -10/Subcaves Parts ------- > --- POWER (1) -------- (None) > --- PROPULSION (2) --- VTOL Module > --- UTILITY (2) ------ Improved Terrain Scanner > --- WEAPON (2) ------- Mining Claw > --- INVENTORY (5) ---- Humpback Subdweller Optics Makeshift Light Armor Plating Multitool Peak State ------------ > --- POWER ------------ Light Ion Engine > --- PROPULSION ------- Wheel Wheel VTOL Module > --- UTILITY ---------- Tower Shield > --- WEAPON ----------- Mining Claw > --- INVENTORY -------- VTOL Module Humpback Improved Terrain Scanner Multitool [Rating: 26] Favorites ----------- Power Light Ion Engine Engine Light Ion Engine Propulsion VTOL Module Leg Aluminum Leg Wheel Wheel Flight Unit VTOL Module Utility Improved Terrain Scanner Device Improved Terrain Scanner Storage Small Storage Unit Processor Improved Targeting Computer Protection Makeshift Light Armor Plating Weapon Mining Claw Ballistic Gun Light Assault Rifle Special Weapon Mining Laser Slashing Weapon Mining Claw Build | -11 -10 -10 -10 ------- Run | Yrd Mat Min Sub Slots Evolved . | . . . . Power . | . . . . Propulsion . | . . . . Utility . | . . . . Weapon . | . . . . Parts Attached 25 | 3 10 2 10 Power 2 | . . 1 1 Engine 2 | . . 1 1 Core . | . . . . Reactor . | . . . . Propulsion 13 | 2 6 . 5 Treads . | . . . . Leg . | . . . . Wheel 7 | 2 2 . 3 Hover . | . . . . Flight 6 | . 4 . 2 Utility 5 | 1 1 . 3 Device 1 | 1 . . . Storage . | . . . . Processor 2 | . 1 . 1 Hackware . | . . . . Protection 2 | . . . 2 Artifact . | . . . . Weapon 5 | . 3 1 1 Energy Gun . | . . . . Energy Cannon . | . . . . Ballistic Gun 3 | . 1 1 1 Ballistic Cannon . | . . . . Launcher . | . . . . Special Weapon 1 | . 1 . . Impact Weapon . | . . . . Slashing Weapon 1 | . 1 . . Piercing Weapon . | . . . . Special Melee Weapon . | . . . . Unidentified Prototypes . | . . . . Parts Lost 7 | . . . 7 Power 1 | . . . 1 Propulsion 4 | . . . 4 Utility 1 | . . . 1 Weapon 1 | . . . 1 Highest Loss Streak 4 | . . . 4 To Critical Strikes . | . . . . Average Backups 4 | 7 6 5 3 Power . | 1 1 1 . Propulsion 1 | 4 3 2 . Utility 1 | . . 2 1 Weapon . | 1 . . . Tool/Special . | . . . . Unused Backups 20 | 10 5 . 5 Power 4 | 2 1 . 1 Propulsion 9 | 5 4 . . Utility 4 | 1 . . 3 Weapon 2 | 2 . . . Tool/Special 1 | . . . 1 Average Slot Usage (%) 85 | . 91 100 80 Engine 10 | . 14 14 8 Wheel 4 | . 14 . 1 Flight 22 | . 14 28 25 Device 11 | . 11 14 11 Storage 1 | . 7 . . Processor 7 | . 4 14 8 Protection 1 | . . . 2 Ballistic Gun 10 | . 16 14 8 Slashing Weapon 11 | . 7 14 13 Peak Build Rating 26 | 9 12 12 26 Average Rating 11 | 7 10 12 13 On Entrance 9 | 6 9 12 12 Avg Prop Armor Cover (%) 5 | . 4 . 6 Naked Turns . | . . . . Heaviest Build 43 | 12 12 7 43 Greatest Support 24 | 20 24 8 20 Greatest Overweight (x) 4 | 1 . . 4 Average Overweight (x) . | . . . . Largest Inventory Capacity 8 | 8 8 5 5 Average Capacity 5 | 8 6 5 5 Most Carried 8 | 8 8 5 5 Average Carried 5 | 7 6 5 4 Final Capacity 8 | 8 5 5 5 Final Carried 8 | 8 5 5 5 Class Distribution -------------------- 64% | Sprinter 35% | Mutant Dominant Class ---------------- Mutant | -10/Materials Sprinter | -10/Mines Sprinter | -10/Subcaves Resources | -11 -10 -10 -10 ----------- Run | Yrd Mat Min Sub Matter Collected 476 | 294 18 47 117 Remotely . | . . . . Salvage Created 303 | 202 54 47 . Parts 25 | 17 3 5 . Haulers Intercepted . | . . . . Recyclers Shooed . | . . . . Parts Field Recycled . | . . . . Retrieved Matter . | . . . . Parts Self-Destructed 5 | . . . 5 Prevented . | . . . . Parts Restored . | . . . . Kills | -11 -10 -10 -10 ------- Run | Yrd Mat Min Sub Combat Hostiles Destroyed 6 | . 3 3 . Guns 6 | . 3 3 . Classes Destroyed 4 | 3 1 . . Worker 2 | 2 . . . Tunneler 5 | 5 . . . Recycler 1 | 1 . . . Swarmer 6 | . 3 3 . Best Kill Streak 3 | 3 3 3 . Combat Bots Only 3 | . 3 3 . Max Kills in Single Turn 1 | 1 1 1 . Gunslinging . | . . . . Exploded . | . . . . Melee . | . . . . Uniques/NPCs Destroyed . | . . . . Combat | -11 -10 -10 -10 -------- Run | Yrd Mat Min Sub Hostile Shots Fired 120 | . 14 22 84 Missed 48 | . 3 11 34 Hits 72 | . 11 11 50 Projectile 72 | . 11 11 50 Damage Taken 1078 | . 84 87 907 Core 260 | . 15 16 229 Absorbed by Shields . | . . . . Regen/Repaired (Parts) 2 | . 2 . . Core Remaining (%) 100 | 100 . . . Volleys Fired 36 | 16 10 10 . Largest 2 | 2 2 1 . Hottest 100 | 40 100 20 . Shots Fired 61 | 32 19 10 . Gun 60 | 32 18 10 . Cannon . | . . . . Launcher . | . . . . Special 1 | . 1 . . Kinetic 60 | 32 18 10 . Thermal 1 | . 1 . . Explosive . | . . . . Electromagnetic . | . . . . Robot Hit Streak 7 | 5 7 3 . Robot Miss Streak 2 | 1 2 2 . Penetration Max . | . . . . Secondary Targets . | . . . . Shots Hit Robots 37 | 21 9 6 1 Core Hits 18 | 12 3 3 . Critical Kills . | . . . . Critical Parts Destroyed . | . . . . Critical Strikes . | . . . . Melee Attacks 22 | . . . 22 Impact . | . . . . Slashing 22 | . . . 22 Piercing . | . . . . Sneak Attacks 1 | . . . 1 Combat Hostiles . | . . . . Follow-up Attacks . | . . . . Damage Inflicted 360 | 218 89 53 . Guns 360 | 218 89 53 . Cannons . | . . . . Explosions . | . . . . Melee . | . . . . Ramming . | . . . . Kinetic 360 | 218 89 53 . Thermal . | . . . . Explosive . | . . . . Electromagnetic . | . . . . Impact . | . . . . Slashing . | . . . . Piercing . | . . . . Highest Corruption . | . . . . Average Corruption . | . . . . Corruption Purged . | . . . . Corruption Blocked . | . . . . Overload Shots . | . . . . Overflow Damage . | . . . . Projectiles . | . . . . Explosions . | . . . . Melee . | . . . . Knockbacks . | . . . . Impact . | . . . . Kinetic . | . . . . Secondary . | . . . . Self-Inflicted Damage . | . . . . Shots . | . . . . Rammed . | . . . . Targets Rammed . | . . . . Kicked . | . . . . Crushed . | . . . . Highest Temperature 20 | . 20 4 . Average Temperature 5 | . 12 2 . Received Heat Transfer 177 | . . . 177 Siege Activations . | . . . . Martial Activations . | . . . . Shielding Activations . | . . . . Robots Disrupted . | . . . . Combat Hostiles . | . . . . Robots Corrupted . | . . . . Combat Hostiles . | . . . . Parts Fried . | . . . . Impact Corruptions . | . . . . Robots Melted . | . . . . Combat Hostiles . | . . . . Parts Melted . | . . . . Heat Transferred . | . . . . Parts Sabotaged . | . . . . Parts Stolen . | . . . . Parts Stripped . | . . . . Power Chain Reactions . | . . . . Alert | -11 -10 -10 -10 ------- Run | Yrd Mat Min Sub Maximum Alert Level . | . . . . Low Security (%) 100 | 100 100 100 . Level 1 . | . . . . Level 2 . | . . . . Level 3 . | . . . . Level 4 . | . . . . Level 5 . | . . . . High Security . | . . . . Max Security . | . . . . Peak Influence 72 | 10 72 72 . Initial 12 | . . 12 . Average 23 | 2 33 52 . Influence Increases 228 | 40 103 70 15 Destroy 0b10 Robot/C 120 | . 60 60 . Destroy 0b10 Robot/NC 40 | 40 . . . Destroy Leader 20 | . 10 10 . Successful Hack 17 | . 17 . . Destroy Structure 1 | . 1 . . Partial Spotted 15 | . 15 . . Lose Combat Pursuer 15 | . . . 15 Influence Decreases 228 | 40 71 40 77 Entered New Map 53 | . . 20 33 Time Decay 175 | 40 71 20 44 Squads Dispatched . | . . . . Investigation . | . . . . Extermination . | . . . . Reinforcement . | . . . . Assault . | . . . . Garrison . | . . . . Intercept . | . . . . Searches Triggered . | . . . . Construction Impeded . | . . . . Haulers Reinforced . | . . . . Active Scanning Responses . | . . . . Cargo Convoy Interrupts . | . . . . Stealth | -11 -10 -10 -10 --------- Run | Yrd Mat Min Sub Distress Signals . | . . . . Communications Jammed . | . . . . Distress Signals . | . . . . Times Spotted 24 | . 6 3 15 Peak Tracking Total 6 | . 3 3 6 Tactical Retreats 6 | . . . 6 Traps | -11 -10 -10 -10 ------- Run | Yrd Mat Min Sub Traps Triggered . | . . . . Indirectly . | . . . . Trap Hack Attempts . | . . . . Triggered . | . . . . Disarmed . | . . . . Reprogrammed . | . . . . Reused . | . . . . Traps Extracted . | . . . . Installed . | . . . . Triggered . | . . . . Machines | -11 -10 -10 -10 ---------- Run | Yrd Mat Min Sub Machines Disabled 1 | . . . 1 Max in Single Turn 1 | . . . 1 Machines Repaired . | . . . . Machines Dismantled . | . . . . Machines Sabotaged . | . . . . Overloaded Fab Kills . | . . . . Hacking | -11 -10 -10 -10 --------- Run | Yrd Mat Min Sub Machines Accessed 9 | . 6 . 3 Terminals 5 | . 5 . . Fabricators . | . . . . Repair Stations 1 | . 1 . . Recycling Units . | . . . . Scanalyzers . | . . . . Garrison Access . | . . . . Total Hacks 24 | . 20 . 4 Successful 16 | . 12 . 4 Failed 8 | . 8 . . Catastrophic 1 | . 1 . . Database Lockouts . | . . . . Manual 17 | . 17 . . Terminals 18 | . 18 . . Fabricators . | . . . . Repair Stations 2 | . 2 . . Recycling Units . | . . . . Scanalyzers . | . . . . Garrison Access . | . . . . Terminal Hacks 4 | . . . 4 Record 1 | . . . 1 Open Door 1 | . . . 1 Proto ID Catalog 1 | . . . 1 Release Object 1 | . . . 1 Fabricator Hacks . | . . . . Repair Station Hacks 2 | . 2 . . Scan Component 1 | . 1 . . Repair 1 | . 1 . . Recycling Unit Hacks . | . . . . Scanalyzer . | . . . . Garrison Access Hacks . | . . . . Unauthorized Hacks 10 | . 10 . . Terminals 10 | . 10 . . Track 2 | . 2 . . Assimilate 1 | . 1 . . Botnet 3 | . 3 . . Operators 1 | . 1 . . Skim 3 | . 3 . . Fabricators . | . . . . Repair Stations . | . . . . Recycling Units . | . . . . Scanalyzers . | . . . . Garrison Access . | . . . . Data Cores Recovered . | . . . . Used . | . . . . Hacking Detections 5 | . 5 . . Full Trace Events . | . . . . Feedback Events . | . . . . Feedback Blocked . | . . . . Robot Schematics Acquired . | . . . . Robots Built . | . . . . Authchips . | . . . . Time . | . . . . Total Robot Build Rating . | . . . . Part Schematics Acquired . | . . . . Parts Built . | . . . . Authchips . | . . . . Time . | . . . . Total Part Build Rating . | . . . . Part Studies Acquired . | . . . . Parts Repaired 1 | . 1 . . Time 38 | . 38 . . Parts Recycled . | . . . . Recycled Matter . | . . . . Retrieved Matter . | . . . . Retrieved Components . | . . . . Parts Scanalyzed . | . . . . Part Schematics Acquired . | . . . . Parts Damaged . | . . . . Bothacking | -11 -10 -10 -10 ------------ Run | Yrd Mat Min Sub Used RIF Installer . | . . . . Robots Hacked . | . . . . Non-combat . | . . . . Combat . | . . . . Robot Hacks Applied . | . . . . Relay Couplers Released . | . . . . Fabnet Peak Effective % . | . . . . Robots Rewired . | . . . . Allies Hacked . | . . . . Hacks Repelled . | . . . . Allies | -11 -10 -10 -10 -------- Run | Yrd Mat Min Sub Total Allies . | . . . . Largest Group . | . . . . Highest-Rated Group . | . . . . Highest-Rated Ally . | . . . . Total Orders . | . . . . Ally Attacks . | . . . . Total Damage . | . . . . Kills . | . . . . Allies Corrupted . | . . . . Allies Melted . | . . . . Intel | -11 -10 -10 -10 ------- Run | Yrd Mat Min Sub Active Infowar (turns) 735 | 93 175 42 425 Terrain 735 | 93 175 42 425 Robot Analysis Total . | . . . . Derelict Logs Recovered 2 | . . . 2 Drone Launches . | . . . . Drone Recoveries . | . . . . Exploration | -11 -10 -10 -10 ------------- Run | Yrd Mat Min Sub Turns Passed 954 | 160 213 42 539 Spaces Moved 1485 | 95 187 44 1159 Core . | . . . . Treads . | . . . . Legs 24 | 24 . . . Wheels 178 | 71 66 . 41 Hover . | . . . . Flight 1283 | . 121 44 1118 Fastest Speed 32 | 80 32 32 32 Average Speed 40 | 90 53 32 34 Slowest Speed 140 | 120 90 32 140 Overloaded Moves . | . . . . Propulsion Burnouts . | . . . . Robots Hopped 9 | . 2 . 7 Potential Cave-ins . | . . . . Cave-ins Triggered . | . . . . Exploration Rate (%) 29 | 3 31 9 73 Regions Visited 3 Branch Regions 2 Pre-discovered Areas . | . . . . Known Exits Taken . | . . . . Unknown Exits Taken 3 | 1 1 1 . Scrap Searched 3 | . . . 3 Spaces Dug 1 | . 1 . . Terrain Destroyed 1 | . 1 . . Melee . | . . . . Projectile 1 | . 1 . . AOE . | . . . . Terrain Rammed . | . . . . Walls Destroyed . | . . . . Machines Disabled . | . . . . Actions | -11 -10 -10 -10 --------- Run | Yrd Mat Min Sub Total 1734 | 143 283 64 1244 Wait 111 | 16 52 7 36 Move 1465 | 94 182 43 1146 Hop 8 | . 2 . 6 Pick Up 20 | 6 7 . 7 Fast Attach 13 | 3 4 . 6 Attach 7 | . 2 . 5 Detach 9 | 2 3 . 4 Swap 11 | . 6 2 3 Drop 32 | 6 15 2 9 Fire 36 | 16 10 10 . Melee 22 | . . . 22 Ram . | . . . . Kick . | . . . . Crush . | . . . . Escape Stasis . | . . . . Rewire . | . . . . Trap . | . . . . Miscellaneous . | . . . . Route ------- -11/Scrapyard -10/Materials -10/Mines -10/Subcaves (discovered 1 exit: [*Mat]) History --------- Turn | Location | Event 1 | -11/Scrapyard | Discovered new exit (range 3) 161 | -11/Scrapyard | Entered Materials 300 | -10/Materials | Discovered new exit (range 9) 357 | -10/Materials | Repaired Imp. Terrain Scanner 374 | -10/Materials | Entered Mines 413 | -10/Mines | Discovered new exit (range 6) 416 | -10/Mines | Entered Subcaves 443 | -10/Subcaves | Learned Materials emergency access door positions 456 | -10/Subcaves | A swath of the cavern ceiling suddenly collapsed 482 | -10/Subcaves | Shifting Twisted Machinery released Mak. Light Armor Plating 490 | -10/Subcaves | Shifting Twisted Machinery released Humpback 535 | -10/Subcaves | Visited 4L-MR0's lab 542 | -10/Subcaves | Found Tower Shield 600 | -10/Subcaves | Build established: Sprinter 710 | -10/Subcaves | Discovered new exit (range 10) 732 | -10/Subcaves | Attached Tower Shield, gained temporary slots: Power, Propulsion x2, Utility x2, Weapon x2 803 | -10/Subcaves | Lost 4 parts (1p2n1u) 878 | -10/Subcaves | Ambushed by Subdweller buried in earth 883 | -10/Subcaves | Shifting Twisted Machinery released Mak. Light Armor Plating 912 | -10/Subcaves | Core integrity fell below 50% 920 | -10/Subcaves | Learned Materials interactive machine intel 954 | -10/Subcaves | Core integrity fell below 20% 955 | -10/Subcaves | Destroyed by FJ-HW1(R) with Subdweller Beam Cannon Last Messages --------------- 00771_ Temporary Weapon slot lost. 00772_ Lgt. Ion Engine destroyed. 00791_ SA-AHP(u) builds Twisted Machinery. 00815_ Sneak attack on SA-AHP(u). 00834_ 29-S69(u) builds Twisted Machinery. 00878_ IT-2DE(R) comes tumbling out of the earth. Mak. Light Armor Plating falls loose from the Twisted Machinery. 00888_ Subatomizers dissect the Sub. Optics. 00888_ Acquired Mak. Light Armor Plating. 00912_ Acquired Sub. Monowheel. 00916_ Subatomizers dissect the Sub. Optics. 00920_ Acquired derelict log, extracted data. Data stored: Materials interactive machine intel. 00924_ Sub. Monowheel destroyed. 00947_ Acquired 3 matter. 00948_ Acquired Sub. Optics. 00951_ Acquired Sub. Power Source. 00953_ VTOL Module destroyed. 00953_ Dropped Sub. Power Source. Map ----- +----------------------------------------------------+ | ?????????????????????????????????????????????????? | | ??????????????????????????#??????????????????????? | | ?????????????????????????????????????????????????? | | ?????????????????????????????????????????????????? | | ??????????????????#??????????????????????????????? | | ?????????????????????????????????????????????????? | | ???????????????"?????????????????????????#???????? | | ?????????????? " ?##########?????????????????????? | | ??????????? " # """" #???##????????????????? | | ??????????? """" #### #????????????????? | | ???????????????# ##????????????????? | | ?????????????????#"##" ##???????????????? | | ???????????????#""## # # # ##??????###????## | | ??????????????##" "" ###### # ##????## ##???# | | ?????????????" "" ##??### # ##??## # ##### | | ?????????# #### ##???## # #### ### ## # | | ?????????# # ?????##""" ##???## # ## ##### | | ?????????????????#???## " " ##???## # "#?# | | ??????????????????????##" ##?????##% # ## # # | | ???????????????????????#" "##??????## ##?? ### | | ??????????????????#?#??## ""##??????####??##### | | ????????????????#??????# ##????????????????# # | | ???????????????????????## #???????????????? # | | ??????????????????# ### #????????"??#??# | | ??????????????????# #?????#????#?? """ | | ????????? ????#???# ###@R##????????????""""" | | ????????????#?? ?? ???#R #?????"?????"??"" | | ???????????????? ?#### #???????????????" | | ?????????????? #??# "; &;#???????????????" | | ???????????? ???##""*%& #######?????????" | | ??#???????? ##?#####" #?????????## | | ???????#???##????# ## ^ #??????????# | | ????????????????## ;;;## ??????????? | | ????????????????# ###;# ?????????? | | ???????? ?####?## ;##?? # # ?????????? | | ??????????## ### #####??? ######????????????? | | ?????????## ##????? #?#???????????????? | | ????????## #??#??? #?????????????????? | | ????????# ## #? ???? ##??#??????????????? | | ????????# ##### ?#???????????????????? | | ????????# ## ##??#### ##??????????????????? | | ????????# ?## #??????? #??????????????????? | | ??????#?###??## ##?#?????? ????????????????????? | | ??????????????###??????????##????????????????????? | | ????????#????????????????????????????????????????? | | ?????????????#???????????????????????????????????? | | ?????????????????????????????????????????????????? | | ?????????????????????????????????????????????????? | | ?#??????????????#????????????????????????????????? | | ?????????????????????????????????????????????????? | +----------------------------------------------------+ Best States ------------- Heat Dissipation 25 Energy Generation 10 Energy Capacity 125 Matter Stores 300 Matter Capacity 300 Sight Range 16 Terrain Scan Range 16 Terrain Scan Density 10 Armor Coverage 2000 Evasion (%) 63 Targeting Accuracy 6 Item Schematics ----------------- None Robot Schematics ------------------ None Fabricated ------------ Nothing Repaired ---------- Imp. Terrain Scanner | 90% | -10/Materials Studied --------- None Alien Tech Used ----------------- None Achievements -------------- Mistaken Identity Challenges ------------ None Game ------ Seed BoreMicroRedistributor Manual? 0 Play Time 00:34:04 Cumulative 148.6 hours Start 2025.10.31 @ 07:37:28 End 2025.10.31 @ 08:13:01 Sessions 5 Manual Loads 0 Difficulty Rogue Special Mode None Game No. 150 Rogue 148 Adventurer 2 Explorer 0 Win Type - Total 0 Types 0/0/0/0/0/0/0/0/0/0 Lore% 63 Gallery% 56 Achievement% 26 Wizard Run 0 Options --------- Layout 2 ASCII 0 Keyboard 1 Movement Vi Keybinds 0 Fullscreen 1 Font 42/SmallcapsLarge Map View 59x48 Zoom Use 71% Tactical HUD 1 Map Filters NONE Filters NONE Steam 1 RUN: 450afe8f-9bba-4740-b1e1-07cb4470d934